bitfinex/quotes_BTCUSD_20260215
["timestamp","ask_amount","ask_price","bid_price","bid_amount"]
[1771154971327,0.12990516,70417.0,70412.0,0.07101032]
[1771154971532,0.12990516,70417.0,70413.0,0.07100901]
[1771154971740,0.12990516,70417.0,70414.0,0.0710085]
[1771154972984,0.12990516,70417.0,70415.0,0.07100754]
[1771154973185,0.12990516,70417.0,70414.0,0.0710085]
[1771154974003,0.12990516,70417.0,70413.0,0.01597452]
[1771154974209,0.12990516,70417.0,70414.0,0.071008]
[1771154974406,0.12990516,70417.0,70413.0,0.07100893]
[1771154974610,0.12990516,70417.0,70413.0,0.07100887]
[1771154975224,0.12990516,70417.0,70412.0,0.07100893]
[1771154975576,0.0710047,70418.0,70412.0,0.07100893]
[1771154975577,0.12990516,70416.0,70412.0,0.07100893]
[1771154975773,0.12990516,70416.0,70411.0,0.07100979]
[1771154976030,0.12990516,70416.0,70413.0,0.0710092]
[1771154976375,0.12990516,70416.0,70411.0,0.07100969]
[1771154977001,0.12990516,70416.0,70413.0,0.07100904]
[1771154977956,0.12990516,70416.0,70414.0,0.0710083]
[1771154978363,0.12990516,70416.0,70413.0,0.07100904]
[1771154978563,0.12990516,70416.0,70413.0,0.07100913]
[1771154979385,0.13030516,70416.0,70413.0,0.07100913]
[1771154980339,0.13030516,70416.0,70412.0,0.07100902]
[1771154980548,0.13030516,70416.0,70413.0,0.07100926]
[1771154981835,0.13030516,70416.0,70412.0,0.07100902]
[1771154982044,0.13030516,70416.0,70412.0,0.0710104]
[1771154982695,0.20131179,70416.0,70410.0,0.07101088]
[1771154982916,0.20131179,70416.0,70411.0,0.07101082]
[1771154983142,0.07100773,70415.0,70411.0,0.07101082]
[1771154983613,0.20131179,70416.0,70411.0,0.07101082]
[1771154983827,0.07140663,70416.0,70411.0,0.07101159]
[1771154984048,0.2009129,70415.0,70410.0,0.07101088]
[1771154984276,0.12990516,70414.0,70410.0,0.07101088]
[1771154984395,0.20091424,70414.0,70409.0,0.07101194]
[1771154984626,0.12990516,70414.0,70410.0,0.07101213]
[1771154986113,0.12990516,70414.0,70412.0,0.07101059]
[1771154986941,0.12990516,70414.0,70411.0,0.07101156]
[1771154987408,0.11767206,70414.0,70410.0,0.07101093]
[1771154987608,0.11767206,70414.0,70409.0,0.07101204]
[1771154987609,0.12990516,70413.0,70409.0,0.07101204]
[1771154987822,0.12990516,70413.0,70410.0,0.07101163]
[1771154988032,0.12990516,70415.0,70411.0,0.0710112]
[1771154988866,0.12990516,70415.0,70410.0,0.07101163]
[1771154989279,0.12990516,70415.0,70411.0,0.07101115]
[1771154990735,0.12990516,70415.0,70412.0,0.07101044]
[1771154991360,0.12990516,70415.0,70411.0,0.07121115]
[1771154991947,0.2009131,70415.0,70411.0,0.0002]
[1771154992185,0.12990516,70415.0,70409.0,0.07101328]
[1771154992377,0.12990516,70413.0,70409.0,0.07101328]
[1771154992896,0.0004,70416.0,70411.0,0.07101151]
[1771154992897,0.12990516,70415.0,70411.0,0.07101151]
[1771154994091,0.13090516,70415.0,70411.0,0.07101151]
[1771154994291,0.20191278,70415.0,70410.0,0.07101252]
[1771154994631,0.07100864,70414.0,70409.0,0.07101195]
[1771154995398,0.20091278,70415.0,70410.0,0.07101231]
[1771154995600,0.13090516,70415.0,70410.0,0.07101231]
[1771154995930,0.20191281,70415.0,70410.0,0.07101231]
[1771154996780,0.20191281,70415.0,70409.0,0.07101198]
[1771154996781,0.20091379,70414.0,70409.0,0.07101198]
[1771154997194,0.20091379,70414.0,70408.0,0.07121296]
[1771154997195,0.07101017,70413.0,70408.0,0.07121296]
[1771154997428,0.12990516,70414.0,70409.0,0.07101315]
[1771154997831,0.12990516,70414.0,70410.0,0.07101263]
[1771154999635,0.0710097,70413.0,70410.0,0.0002]
[1771154999852,0.12990516,70412.0,70410.0,0.07121236]
[1771155000459,0.12990516,70414.0,70410.0,0.07121236]
[1771155001362,0.12990516,70414.0,70411.0,0.07101136]
[1771155001558,0.07140854,70416.0,70411.0,0.07101136]
[1771155001759,0.2013137,70416.0,70411.0,0.07101136]
[1771155001965,0.40204501,70421.0,70410.0,0.07121236]
[1771155001966,0.00036618,70421.0,70410.0,0.0002]
[1771155002176,0.07104292,70420.0,70415.0,0.07100665]
[1771155002372,4e-05,70420.0,70416.0,0.07100653]
[1771155002845,0.07104276,70420.0,70415.0,0.07100665]
[1771155003050,0.20094792,70420.0,70415.0,0.07100665]
[1771155003589,0.12994516,70420.0,70410.0,0.00025]
[1771155003805,0.20091009,70418.0,70413.0,0.07100952]
[1771155004014,0.07100616,70417.0,70411.0,0.0710112]
[1771155004262,0.0710069,70416.0,70411.0,0.0710112]
[1771155005007,0.07100616,70417.0,70412.0,0.07101059]
[1771155005645,0.07100406,70419.0,70414.0,0.07100833]
[1771155005848,0.07100406,70419.0,70410.0,0.00025]
[1771155005849,0.12990516,70419.0,70416.0,0.07100625]
[1771155006061,0.12990516,70419.0,70415.0,0.07100605]
[1771155006510,0.07104293,70420.0,70415.0,0.07100605]
[1771155006711,4e-05,70420.0,70415.0,0.07100605]
[1771155006923,0.12994516,70420.0,70416.0,0.07100631]
[1771155007462,0.20094781,70420.0,70415.0,0.07100605]
[1771155008034,4e-05,70420.0,70411.0,0.28404652]
[1771155008218,4e-05,70420.0,70417.0,0.07100528]
[1771155008617,0.0004,70419.0,70417.0,0.07100528]
[1771155009685,0.0004,70419.0,70411.0,0.07121132]
[1771155009686,0.11767206,70418.0,70411.0,0.07121132]
[1771155009816,0.12990516,70416.0,70411.0,0.0002]
[1771155010022,0.12990516,70416.0,70411.0,0.07121103]
[1771155010236,0.12990516,70416.0,70412.0,0.07100998]
[1771155010445,0.07140523,70419.0,70412.0,0.07100998]
[1771155010446,0.07140523,70419.0,70413.0,0.07100904]
[1771155011046,0.20131039,70419.0,70413.0,0.07100904]
[1771155011774,0.07100466,70418.0,70413.0,0.0633814]
[1771155011922,0.20090982,70418.0,70413.0,0.0633814]
[1771155013996,0.12990516,70416.0,70412.0,0.07100998]
[1771155014798,0.12990516,70416.0,70411.0,0.07121001]
[1771155015379,0.07101026,70414.0,70411.0,0.0002]
[1771155015622,0.20091542,70414.0,70411.0,0.0002]
[1771155016217,0.07100986,70413.0,70411.0,0.0002]
[1771155018286,0.20191542,70414.0,70411.0,0.0002]
[1771155018928,0.20091542,70414.0,70411.0,0.0002]
[1771155019129,0.001,70413.0,70411.0,0.0002]
[1771155019283,0.07200978,70413.0,70411.0,0.0002]
[1771155019729,0.20091542,70414.0,70411.0,0.0002]
[1771155020088,0.20191542,70414.0,70411.0,0.0002]
[1771155020573,0.07101026,70414.0,70411.0,0.0002]
[1771155020784,0.001,70413.0,70411.0,0.0002]
[1771155021960,0.07101026,70414.0,70411.0,0.0002]
[1771155022283,0.07201026,70414.0,70411.0,0.0002]
[1771155022713,0.07100968,70413.0,70411.0,0.0002]
[1771155023775,0.07200968,70413.0,70411.0,0.0002]
[1771155024184,0.001,70413.0,70411.0,0.0002]
[1771155024385,0.07200982,70413.0,70411.0,0.0002]
[1771155024585,0.07200982,70413.0,70408.0,0.06398656]
[1771155025105,0.07100982,70413.0,70408.0,0.06398656]
[1771155025511,0.07200982,70413.0,70409.0,0.07101364]
[1771155025912,0.07100982,70413.0,70409.0,0.07101364]
[1771155026428,0.07100982,70413.0,70408.0,0.06418656]
[1771155027141,0.28401898,70418.0,70408.0,0.0002]
[1771155027347,0.07101236,70411.0,70408.0,0.0002]
[1771155028149,0.071011,70412.0,70408.0,0.0002]
[1771155028644,0.07101183,70411.0,70408.0,0.0002]
[1771155028886,0.071011,70412.0,70408.0,0.0002]
[1771155029700,0.12990516,70411.0,70408.0,0.0002]
[1771155029836,0.071011,70412.0,70408.0,0.0002]
[1771155030041,0.07101183,70411.0,70408.0,0.0002]
[1771155030663,0.071011,70412.0,70408.0,0.0002]
[1771155030865,0.07101216,70411.0,70408.0,0.0002]
[1771155031559,0.071011,70412.0,70408.0,0.0002]
[1771155031859,0.20091723,70411.0,70408.0,0.0002]
[1771155032053,0.07100993,70413.0,70408.0,0.0002]
[1771155032200,0.07101115,70412.0,70408.0,0.0002]
[1771155032727,0.12990516,70411.0,70408.0,0.0002]
[1771155032938,0.07101122,70412.0,70408.0,0.0002]
[1771155038261,0.07101122,70412.0,70408.0,0.00016]
[1771155038751,0.07101195,70411.0,70408.0,0.00016]
[1771155038950,0.07101122,70412.0,70408.0,0.00016]
[1771155039351,0.07101122,70412.0,70407.0,0.07101532]
[1771155039701,0.07101163,70411.0,70406.0,0.05114254]
[1771155039904,0.07101163,70411.0,70408.0,0.0002]
[1771155040105,0.07101163,70411.0,70406.0,0.05114254]
[1771155041209,0.07101163,70411.0,70405.0,0.07121588]
[1771155041210,0.07101342,70410.0,70405.0,0.07121588]
[1771155041410,0.07101163,70411.0,70406.0,0.07101666]
[1771155041606,0.04052395,70412.0,70406.0,0.07101666]
[1771155041812,0.07101321,70411.0,70406.0,0.07101666]
[1771155042519,0.07101321,70411.0,70406.0,0.07106666]
[1771155043541,0.04052395,70412.0,70406.0,5e-05]
[1771155043542,0.07101275,70410.0,70406.0,5e-05]
[1771155043806,0.20091791,70410.0,70406.0,5e-05]
[1771155044189,0.07101275,70410.0,70406.0,5e-05]
[1771155044415,0.0710129,70410.0,70406.0,5e-05]
[1771155045505,0.0710129,70410.0,70406.0,0.07106656]
[1771155045980,0.0710129,70410.0,70406.0,5e-05]
[1771155046530,0.0710129,70410.0,70406.0,0.00025]
[1771155050409,0.071014,70409.0,70406.0,0.00025]
[1771155050612,0.07101264,70410.0,70398.0,0.07135182]
[1771155050836,0.07101919,70404.0,70399.0,0.41126359]
[1771155051038,0.03519826,70403.0,70399.0,0.41126359]
[1771155051269,0.02065005,70403.0,70399.0,0.41126359]
[1771155051839,0.02065005,70403.0,70400.0,0.07122264]
[1771155052602,0.02065005,70403.0,70400.0,0.0002]
[1771155053447,0.02065005,70403.0,70401.0,0.07102165]
[1771155054273,0.02065005,70403.0,70401.0,0.07102163]
[1771155054914,0.04280132,70405.0,70401.0,0.07102163]
[1771155056226,0.1138193,70405.0,70400.0,0.07102224]
[1771155056446,0.07101926,70404.0,70399.0,0.071022]
[1771155056943,0.1138193,70405.0,70400.0,0.07102214]
[1771155057626,0.07102054,70403.0,70398.0,0.07135221]
[1771155058474,0.07101906,70404.0,70399.0,0.07102294]
[1771155058685,0.11381943,70405.0,70400.0,0.07102245]
[1771155059115,0.11381943,70405.0,70399.0,0.07102294]
[1771155059556,0.07101878,70404.0,70399.0,0.07102294]
[1771155059775,0.11381943,70405.0,70400.0,0.07122222]
[1771155060002,0.07101885,70404.0,70400.0,0.0002]
[1771155061932,0.07101906,70404.0,70400.0,0.0002]
[1771155062163,0.07102113,70402.0,70400.0,0.0002]
[1771155062345,0.04280132,70402.0,70400.0,0.0002]
[1771155062553,0.07101977,70403.0,70400.0,0.0002]
[1771155062855,0.0710198,70403.0,70400.0,0.0002]
[1771155063894,0.07102087,70402.0,70400.0,0.0002]
[1771155064360,0.07102087,70402.0,70396.0,0.34808418]
[1771155064576,0.07102087,70402.0,70397.0,0.07102533]
[1771155065015,0.07102145,70403.0,70398.0,0.0710247]
[1771155065983,0.07102034,70404.0,70378.0,0.68819419]
[1771155065984,0.28407681,70404.0,70378.0,0.68819419]
[1771155066212,0.07104391,70379.0,70378.0,0.07719813]
[1771155066416,0.04280132,70386.0,70378.0,0.07719813]
[1771155066650,0.0710384,70385.0,70378.0,0.14824246]
[1771155066849,0.07103788,70385.0,70378.0,0.14824206]
[1771155067076,0.0710382,70385.0,70379.0,0.07104336]
[1771155067290,0.0710382,70385.0,70378.0,0.14824206]
[1771155067531,0.0710382,70385.0,70379.0,0.00043181]
[1771155067742,0.07103939,70384.0,70379.0,0.00043181]
[1771155067953,0.07104004,70383.0,70379.0,0.00043181]
[1771155068582,0.07103852,70385.0,70379.0,0.00043181]
[1771155068819,4e-05,70380.0,70379.0,0.00039181]
[1771155072987,4e-05,70380.0,70379.0,0.07143572]
[1771155073397,4e-05,70380.0,70379.0,0.00039181]
[1771155074057,0.0710829,70380.0,70379.0,0.00039181]
[1771155077321,0.0004,70385.0,70379.0,0.00039181]
[1771155077527,0.0004,70385.0,70381.0,0.07104109]
[1771155077679,0.0004,70385.0,70380.0,0.07104244]
[1771155078533,0.0004,70385.0,70381.0,0.07104172]
[1771155078723,0.0004,70385.0,70382.0,0.07104028]
[1771155079065,0.0004,70385.0,70381.0,0.07104172]
[1771155079421,0.0004,70385.0,70380.0,0.07104111]
[1771155079826,0.0004,70385.0,70381.0,0.07104164]
[1771155080775,0.04320132,70393.0,70380.0,0.07104111]
[1771155080776,0.1496,70401.0,70397.0,0.07102492]
[1771155080977,0.0001275,70402.0,70397.0,0.07102485]
[1771155081462,0.0001275,70402.0,70391.0,0.18265721]
[1771155081666,0.0001275,70402.0,70398.0,0.07102403]
[1771155081954,0.0001275,70402.0,70397.0,0.0710238]
[1771155082096,0.07114847,70402.0,70397.0,0.0710238]
[1771155082476,0.0001275,70402.0,70398.0,0.07102444]
[1771155082695,0.0001275,70402.0,70399.0,0.07102373]
[1771155082891,0.04280132,70407.0,70392.0,0.28412319]
[1771155082892,4e-05,70410.0,70402.0,0.0710207]
[1771155083091,4e-05,70410.0,70405.0,0.07101685]
[1771155083295,4e-05,70410.0,70392.0,5e-05]
[1771155083296,4e-05,70410.0,70407.0,0.06037757]
[1771155083922,4e-05,70410.0,70408.0,0.07101443]
[1771155084124,0.00047181,70410.0,70407.0,0.06037757]
[1771155084295,0.00047181,70410.0,70408.0,0.07101451]
[1771155084948,0.00047181,70410.0,70408.0,0.07086588]
[1771155085742,0.00047181,70410.0,70400.0,0.11902896]
[1771155085743,0.07148485,70410.0,70403.0,0.0710197]
[1771155086122,0.07101379,70409.0,70404.0,0.07101821]
[1771155089303,0.00087181,70410.0,70408.0,0.07101446]
[1771155089503,0.00087181,70410.0,70405.0,0.07101713]
[1771155089703,0.07188454,70410.0,70405.0,0.07101713]
[1771155089910,0.00087181,70410.0,70407.0,0.07101562]
[1771155090168,0.00087181,70410.0,70406.0,0.071016]
[1771155090575,0.00087181,70410.0,70198.0,80.0]
[1771155090576,0.11381629,70408.0,70390.0,0.40318811]
[1771155090835,0.11381629,70408.0,70403.0,0.0710194]
[1771155091070,0.04280132,70407.0,70403.0,0.0710194]
[1771155091549,0.07101697,70406.0,70401.0,0.07102134]
[1771155091739,0.11381753,70407.0,70402.0,0.07102044]
[1771155092736,0.0710169,70406.0,70400.0,0.07102105]
[1771155093342,0.0710169,70406.0,70401.0,0.0710213]
[1771155093553,0.07101717,70406.0,70400.0,0.07102105]
[1771155093748,0.07102134,70402.0,70396.0,0.07102593]
[1771155093965,0.11382304,70401.0,70396.0,0.07102593]
[1771155094387,0.07102134,70402.0,70396.0,0.07102634]
[1771155094590,0.1138226,70403.0,70397.0,0.0710256]
[1771155094818,0.04280132,70402.0,70398.0,0.07102471]
[1771155095735,0.04380132,70402.0,70398.0,0.07102471]
[1771155096493,0.04280132,70402.0,70398.0,0.07122471]
[1771155097938,0.04280132,70402.0,70398.0,0.0002]
[1771155098138,0.04280132,70402.0,70398.0,0.07118439]
[1771155100603,0.28403663,70414.0,70398.0,0.07118373]
[1771155100824,0.04280132,70408.0,70404.0,0.07101786]
[1771155101202,0.04280132,70408.0,70403.0,0.07101786]
[1771155101373,0.04280132,70408.0,70404.0,0.07101821]
[1771155101581,0.0004,70409.0,70399.0,0.07102373]
[1771155101842,0.0004,70409.0,70405.0,0.07101686]
[1771155102045,0.0004,70409.0,70406.0,0.07101639]
[1771155102246,0.0004,70409.0,70400.0,0.28408857]
[1771155102473,0.0004,70409.0,70407.0,0.07101507]
[1771155102670,0.04280132,70408.0,70404.0,0.07101799]
[1771155103033,0.04280132,70408.0,70403.0,0.07101793]
[1771155103354,0.04280132,70408.0,70404.0,0.07101866]
[1771155104059,0.04320132,70408.0,70404.0,0.07101866]
[1771155104820,0.07101862,70405.0,70399.0,0.07102319]
[1771155105069,0.0004,70408.0,70398.0,0.00016]
[1771155105070,0.04280132,70402.0,70398.0,0.07118438]
[1771155105223,0.04280132,70402.0,70400.0,0.07102227]
[1771155105883,0.04280132,70402.0,70399.0,0.07102196]
[1771155106198,0.04280132,70402.0,70398.0,0.07118307]
[1771155106407,0.04280132,70402.0,70399.0,0.07102361]
[1771155106619,0.04280132,70402.0,70398.0,0.07118307]
[1771155106760,0.04280132,70402.0,70399.0,0.07102372]
[1771155107412,0.07102228,70401.0,70398.0,0.00016]
[1771155107587,0.1138236,70401.0,70398.0,0.00016]
[1771155108885,0.1148236,70401.0,70398.0,0.00016]
[1771155109312,0.04280132,70401.0,70398.0,0.00016]
[1771155109692,0.04380132,70401.0,70398.0,0.00016]
[1771155111227,0.1138232,70401.0,70398.0,0.00016]
[1771155111484,0.04280132,70401.0,70398.0,0.00016]
[1771155111903,0.04280132,70400.0,70398.0,0.00016]
[1771155113470,0.04284132,70400.0,70398.0,0.00016]
[1771155114077,0.04284132,70400.0,70396.0,0.07102669]
[1771155114960,0.04284132,70400.0,70397.0,0.07102568]
[1771155115161,0.04284132,70400.0,70396.0,0.07102669]
[1771155116490,0.07102533,70398.0,70392.0,0.07107895]
[1771155116694,0.04280132,70397.0,70393.0,0.07102923]
[1771155117129,0.07102533,70398.0,70393.0,0.07102923]
[1771155119333,0.07102533,70398.0,70394.0,0.07102877]
[1771155119918,0.04280132,70399.0,70396.0,0.07102594]
[1771155120461,0.04280132,70399.0,70395.0,0.07102777]
[1771155120705,0.04280132,70399.0,70392.0,5e-05]
[1771155120910,4e-05,70400.0,70399.0,0.07102373]
[1771155124305,1e-08,70400.0,70399.0,0.07102373]
[1771155124502,0.00087181,70410.0,70408.0,0.07101465]
[1771155130722,0.00087181,70410.0,70407.0,0.07101496]
[1771155130933,0.00087181,70410.0,70405.0,0.07101757]
[1771155131416,0.00087181,70410.0,70406.0,0.07101567]
[1771155132392,0.0003638,70410.0,70407.0,0.07101526]
[1771155132591,0.04316512,70410.0,70407.0,0.07101526]
[1771155132993,0.04316512,70410.0,70405.0,0.07101733]
[1771155133225,0.04316512,70410.0,70406.0,0.07101626]
[1771155133448,0.00012674,70409.0,70406.0,0.07101626]
[1771155135557,0.00012674,70409.0,70406.0,0.07101665]
[1771155137716,0.00012674,70409.0,70405.0,0.07101728]
[1771155137916,0.04280132,70408.0,70406.0,0.07101645]
[1771155138399,0.00012674,70409.0,70406.0,0.07101645]
[1771155138809,0.00012674,70409.0,70407.0,0.07101562]
[1771155139391,0.00012674,70409.0,70406.0,0.07101645]
[1771155139913,0.00012674,70409.0,70407.0,0.07101561]
[1771155140086,0.00012674,70409.0,70406.0,0.07101645]
[1771155140492,0.00052674,70409.0,70406.0,0.07101645]
[1771155141607,0.04332806,70409.0,70406.0,0.07101645]
[1771155142245,0.04332806,70409.0,70405.0,0.07101757]
[1771155142432,0.07101481,70408.0,70403.0,0.07101907]
[1771155142635,0.04332806,70409.0,70405.0,0.07101737]
[1771155143417,0.04332806,70409.0,70404.0,0.07101849]
[1771155143635,0.04280132,70408.0,70403.0,0.07101939]
[1771155143834,0.07154075,70409.0,70400.0,0.00024]
[1771155143835,0.04332806,70409.0,70400.0,0.00024]
[1771155144036,0.04332806,70409.0,70405.0,0.07101734]
[1771155144237,0.04280132,70408.0,70404.0,0.07101846]
[1771155144573,0.00052674,70409.0,70406.0,0.07101653]
[1771155144949,0.00052674,70409.0,70405.0,0.07101717]
[1771155145266,0.00052674,70409.0,70406.0,0.07101648]
[1771155146245,0.00052674,70409.0,70408.0,0.07101465]
[1771155147235,0.00052674,70409.0,70407.0,0.07101525]
[1771155148399,0.0004,70409.0,70408.0,0.07101465]
[1771155148984,0.0004,70409.0,70407.0,0.07101525]
[1771155149392,0.00012674,70408.0,70407.0,0.07101525]
[1771155149870,0.00012674,70408.0,70406.0,0.07101502]
[1771155150633,0.00012674,70408.0,70407.0,0.07101566]
[1771155151561,0.00012674,70408.0,70406.0,0.07101502]
[1771155151917,0.00012674,70408.0,70407.0,0.07101566]
[1771155152117,0.00012674,70408.0,70406.0,0.07101502]
[1771155155208,0.00012674,70408.0,70407.0,0.07101566]
[1771155155420,0.00012674,70408.0,70406.0,0.07101502]
[1771155155848,0.00012674,70408.0,70407.0,0.07101566]
[1771155156151,0.00012674,70408.0,70405.0,0.0002]
[1771155157259,0.07114181,70408.0,70405.0,0.0002]
[1771155157538,0.00012674,70408.0,70405.0,0.0002]
[1771155158223,0.00012674,70408.0,70405.0,0.00016]
[1771155158985,0.00012674,70408.0,70405.0,0.07117735]
[1771155159429,0.00012674,70408.0,70405.0,0.00016]
[1771155160845,0.00012674,70408.0,70405.0,0.0711776]
[1771155161443,0.07114147,70408.0,70405.0,0.00016]
[1771155161666,0.04280132,70407.0,70405.0,0.00016]
[1771155162117,0.00012674,70408.0,70405.0,0.00016]
[1771155164003,0.04280132,70407.0,70405.0,0.00016]
[1771155164200,0.00012674,70408.0,70405.0,0.00016]
[1771155164404,0.07141388,70409.0,70405.0,0.00016]
[1771155165527,0.00012674,70408.0,70405.0,0.00016]
[1771155166783,0.00012674,70408.0,70403.0,0.04297905]
[1771155166980,0.00012674,70408.0,70404.0,0.07101833]
[1771155168420,0.07114167,70408.0,70403.0,0.04297905]
[1771155168586,0.04280132,70406.0,70403.0,0.07101957]
[1771155168790,0.04252516,70406.0,70403.0,0.07101957]
[1771155169013,0.11380491,70408.0,70403.0,0.07101957]
[1771155169800,0.11380491,70408.0,70402.0,0.07102035]
[1771155169983,0.11380491,70408.0,70403.0,0.07101937]
[1771155170950,0.11380491,70408.0,70403.0,0.07121933]
[1771155173007,0.11380491,70408.0,70402.0,0.07102035]
[1771155173008,0.00012674,70408.0,70395.0,0.0002]
[1771155173224,0.07102918,70394.0,70388.0,0.07123439]
[1771155173447,0.04263057,70394.0,70389.0,0.07103334]
[1771155173657,0.04263057,70393.0,70389.0,0.07103334]
[1771155173864,0.04263057,70393.0,70390.0,0.07127269]
[1771155174718,0.07102818,70395.0,70390.0,0.07127269]
[1771155174930,0.11365875,70395.0,70390.0,0.07127269]
[1771155175151,0.07103015,70393.0,70390.0,0.00024]
[1771155175551,0.00012674,70392.0,70390.0,0.00024]
[1771155179886,0.0711579,70392.0,70390.0,0.00024]
[1771155180867,0.00012674,70392.0,70390.0,0.00024]
[1771155182130,0.07115784,70392.0,70390.0,0.00024]
[1771155182325,0.04263057,70397.0,70390.0,0.00024]
[1771155182530,0.11915555,70398.0,70390.0,0.00024]
[1771155182737,0.07102575,70397.0,70390.0,0.0002]
[1771155183007,0.07102496,70398.0,70393.0,0.07102948]
[1771155183163,0.11365553,70398.0,70393.0,0.07102948]
[1771155184015,0.07102603,70397.0,70392.0,0.0710305]
[1771155184216,0.07102874,70395.0,70390.0,0.07123263]
[1771155184431,0.07102874,70395.0,70390.0,0.0002]
[1771155185424,0.07102897,70394.0,70390.0,0.0002]
[1771155186947,0.07102897,70394.0,70393.0,0.0002]
[1771155187197,0.04263057,70391.0,70390.0,0.0002]
[1771155187523,0.07103139,70392.0,70390.0,0.0002]
[1771155192223,0.11366196,70392.0,70390.0,0.0002]
[1771155192660,0.07103139,70392.0,70390.0,0.0002]
[1771155192870,0.07103178,70393.0,70390.0,0.0002]
[1771155193291,0.0710309,70392.0,70390.0,0.0002]
[1771155194173,0.0710318,70391.0,70390.0,0.0002]
[1771155194399,0.0710309,70392.0,70390.0,0.0002]
[1771155196909,0.04263057,70391.0,70390.0,0.0002]
[1771155197062,0.0710309,70392.0,70390.0,0.0002]
[1771155200684,0.11366237,70391.0,70390.0,0.0002]
[1771155202335,0.07103361,70390.0,70386.0,0.0002]
[1771155202558,0.04263057,70389.0,70386.0,0.0002]
[1771155202885,0.0004,70393.0,70383.0,0.07103978]
[1771155202886,0.07103558,70388.0,70383.0,0.07103978]
[1771155203058,0.07103558,70388.0,70382.0,0.07123931]
[1771155203254,0.11366677,70387.0,70382.0,0.07123931]
[1771155203642,0.04263057,70387.0,70383.0,0.07103982]
[1771155204212,0.0710373,70386.0,70383.0,0.00043181]
[1771155204489,0.0710373,70386.0,70382.0,0.0002]
[1771155204490,0.04263057,70385.0,70382.0,0.0002]
[1771155204701,0.04263057,70385.0,70378.0,0.02635728]
[1771155204702,0.07103858,70385.0,70379.0,0.07104349]
[1771155204837,0.04263057,70384.0,70379.0,0.07104349]
[1771155205176,0.04263057,70384.0,70380.0,0.07104255]
[1771155205379,0.04263057,70384.0,70381.0,0.07104182]
[1771155205968,0.04263057,70384.0,70382.0,0.0710408]
[1771155206232,0.04263057,70384.0,70381.0,0.07104182]
[1771155206887,0.04263057,70384.0,70382.0,0.07104088]
[1771155207128,0.04263057,70384.0,70381.0,0.07104182]
[1771155207316,0.04263057,70384.0,70382.0,0.07104074]
[1771155207632,0.04263057,70384.0,70380.0,0.07104274]
[1771155208057,0.04263057,70384.0,70381.0,0.07104146]
[1771155208725,0.04263057,70384.0,70380.0,0.07104274]
[1771155209094,0.04263057,70384.0,70381.0,0.07104185]
[1771155211298,4.904e-05,70385.0,70378.0,0.02635728]
[1771155211488,0.04263057,70381.0,70378.0,0.02635728]
[1771155212001,0.11367308,70381.0,70378.0,0.02635728]
[1771155212390,0.07104341,70380.0,70378.0,0.02635728]
[1771155212565,0.04263057,70379.0,70378.0,0.02635728]
[1771155212943,0.07104341,70380.0,70378.0,0.02635728]
[1771155214595,0.07104391,70379.0,70378.0,0.02635728]
[1771155214853,0.07104391,70379.0,70378.0,0.0259758]
[1771155215005,0.07104492,70378.0,70373.0,0.0002]
[1771155215208,0.07104492,70378.0,70348.0,1.55837984]
[1771155215209,0.1217499,70381.0,70335.0,0.0001274]
[1771155215422,0.07106549,70358.0,70349.0,0.00155535]
[1771155215630,0.07106549,70358.0,70354.0,0.07106866]
[1771155215631,0.04263057,70358.0,70354.0,0.07106866]
[1771155215797,0.04263057,70358.0,70344.0,0.12069789]
[1771155216005,0.04263057,70373.0,70344.0,4.859483]
[1771155216209,0.14077367,70397.0,70364.0,0.12069789]
[1771155216210,0.07104413,70379.0,70364.0,0.12069789]
[1771155216419,0.34024,70378.0,70374.0,0.07104737]
[1771155216627,0.34024,70378.0,70374.0,0.07113318]
[1771155216826,0.34024,70380.0,70375.0,0.07104795]
[1771155217057,0.34024,70380.0,70374.0,8.581e-05]
[1771155217058,0.3403492,70380.0,70378.0,0.07104429]
[1771155217404,0.11366452,70389.0,70384.0,0.07053872]
[1771155217813,0.04263057,70389.0,70384.0,0.07103885]
[1771155218023,0.04263057,70388.0,70383.0,0.07103832]
[1771155218239,0.04263057,70386.0,70378.0,0.07100436]
[1771155218394,0.04263057,70382.0,70378.0,0.0002]
[1771155219624,0.00142795,70385.0,70374.0,8.581e-05]
[1771155219625,0.07104372,70380.0,70374.0,0.07113428]
[1771155219830,0.04263057,70379.0,70374.0,0.07113428]
[1771155220030,0.04263057,70377.0,70374.0,0.07113428]
[1771155220234,0.07104596,70377.0,70374.0,8.581e-05]
[1771155220480,0.1217499,70372.0,70369.0,0.07105356]
[1771155220773,0.04263057,70371.0,70369.0,0.07117649]
[1771155221408,0.04263057,70371.0,70369.0,0.00012293]
[1771155221618,0.04263057,70371.0,70368.0,0.06352826]
[1771155222686,0.04263057,70371.0,70369.0,0.07105389]
[1771155222928,0.04263057,70371.0,70368.0,0.06352826]
[1771155223139,0.04263057,70371.0,70366.0,0.07105544]
[1771155223348,0.04263057,70371.0,70369.0,0.07105394]
[1771155223557,0.04263057,70371.0,70363.0,0.28443625]
[1771155223558,0.04263057,70389.0,70383.0,0.07103947]
[1771155223771,0.07103723,70386.0,70381.0,0.07104189]
[1771155224260,0.07103723,70386.0,70363.0,0.0002]
[1771155224261,0.11888952,70388.0,70363.0,0.0002]
[1771155224472,0.3403904,70389.0,70360.0,4e-05]
[1771155224473,0.07105767,70366.0,70360.0,4e-05]
[1771155224689,0.07105978,70364.0,70360.0,4e-05]
[1771155224894,0.34028,70376.0,70360.0,4e-05]
[1771155224895,0.11344205,70362.0,70360.0,4e-05]
[1771155225103,0.04238057,70361.0,70360.0,4e-05]
[1771155225319,0.07106246,70361.0,70356.0,0.07106665]
[1771155225565,0.07106246,70361.0,70355.0,0.07106726]
[1771155225766,0.04238057,70360.0,70356.0,0.07106682]
[1771155226164,0.04238057,70360.0,70355.0,0.07106726]
[1771155226165,0.04238057,70360.0,70355.0,0.02754168]
[1771155226606,0.04238057,70360.0,70356.0,0.07106678]
[1771155226846,0.04238057,70360.0,70357.0,0.0710658]
[1771155227043,0.001,70361.0,70360.0,0.0710631]
[1771155227348,0.34028,70371.0,70357.0,0.07106532]
[1771155227349,0.07106049,70363.0,70357.0,0.07106532]
[1771155227573,0.07105736,70366.0,70360.0,0.07106213]
[1771155227775,0.11344126,70363.0,70358.0,0.07106511]
[1771155228322,0.04238057,70363.0,70358.0,0.07106511]
[1771155228523,0.07105813,70365.0,70359.0,0.07106358]
[1771155228730,0.07105941,70364.0,70358.0,0.07106512]
[1771155228935,0.07106035,70363.0,70358.0,0.07106512]
[1771155229136,0.11344092,70363.0,70358.0,0.07106512]
[1771155229560,0.04238057,70363.0,70358.0,0.07106512]
[1771155229972,0.11344146,70363.0,70357.0,0.07115044]
[1771155230308,0.11344217,70362.0,70357.0,0.07115044]
[1771155230443,0.04238057,70362.0,70358.0,0.07106501]
[1771155232322,0.04238057,70362.0,70357.0,0.07115044]
[1771155232323,0.11344175,70362.0,70357.0,0.07115044]